[Event "Betsys MČR v online bleskovém šachu 2021"]
[Site "Chess.com"]
[Date "2021.04.17"]
[Round "1"]
[White "vadoto"]
[Black "Vitana"]
[Result "0-1"]
[WhiteElo "1285"]
[BlackElo "2018"]
[TimeControl "180+1"]
[EndTime "9:07:41 PDT"]
[Termination "Uživatel Vitana zvítězil matem"]

1. e4 {[%clk 0:03:00.1]} 1... e6 {[%clk 0:02:59.7]} 2. d4 {[%clk 0:02:59.4]}
2... d5 {[%clk 0:02:58.9]} 3. e5 {[%clk 0:02:59]} 3... c5 {[%clk 0:02:58.4]} 4.
c3 {[%clk 0:02:58.5]} 4... Nc6 {[%clk 0:02:58.2]} 5. Nf3 {[%clk 0:02:57.8]} 5...
Bd7 {[%clk 0:02:58.5]} 6. Be2 {[%clk 0:02:54.8]} 6... Qb6 {[%clk 0:02:58.9]} 7.
O-O {[%clk 0:02:43.6]} 7... Nge7 {[%clk 0:02:56.8]} 8. Nbd2 {[%clk 0:02:28.1]}
8... cxd4 {[%clk 0:02:53.9]} 9. cxd4 {[%clk 0:02:25.3]} 9... Nxd4 {[%clk
0:02:53.2]} 10. Nxd4 {[%clk 0:02:21.6]} 10... Qxd4 {[%clk 0:02:53.2]} 11. Nf3
{[%clk 0:02:20.2]} 11... Qxd1 {[%clk 0:02:52.6]} 12. Rxd1 {[%clk 0:02:18.9]}
12... Ng6 {[%clk 0:02:52.5]} 13. Be3 {[%clk 0:02:15.5]} 13... Be7 {[%clk
0:02:49.5]} 14. Rac1 {[%clk 0:02:14.7]} 14... Bc6 {[%clk 0:02:49.3]} 15. Rd3
{[%clk 0:02:02.3]} 15... O-O {[%clk 0:02:47]} 16. Rdc3 {[%clk 0:02:00]} 16...
Rfc8 {[%clk 0:02:41.7]} 17. Nd4 {[%clk 0:01:53.5]} 17... Bd7 {[%clk 0:02:35.3]}
18. Rxc8+ {[%clk 0:01:38.2]} 18... Rxc8 {[%clk 0:02:34.6]} 19. Rxc8+ {[%clk
0:01:37.7]} 19... Bxc8 {[%clk 0:02:34.7]} 20. f4 {[%clk 0:01:35.7]} 20... a6
{[%clk 0:02:29.9]} 21. Nb3 {[%clk 0:01:31.5]} 21... Bd7 {[%clk 0:02:26.3]} 22.
g3 {[%clk 0:01:27.4]} 22... Kf8 {[%clk 0:02:25.1]} 23. Bc5 {[%clk 0:01:26.3]}
23... Ke8 {[%clk 0:02:14.4]} 24. Kf2 {[%clk 0:01:25.8]} 24... Bc6 {[%clk
0:02:11.4]} 25. Ke3 {[%clk 0:01:20.4]} 25... Nf8 {[%clk 0:02:10.3]} 26. Kd4
{[%clk 0:01:19.5]} 26... Nd7 {[%clk 0:02:09.6]} 27. Bxe7 {[%clk 0:01:14.4]}
27... Kxe7 {[%clk 0:02:08.8]} 28. Bd3 {[%clk 0:01:11.3]} 28... h6 {[%clk
0:02:06.9]} 29. Na5 {[%clk 0:00:59.4]} 29... Nb8 {[%clk 0:02:03.8]} 30. Kc5
{[%clk 0:00:47.7]} 30... Kd7 {[%clk 0:01:58.9]} 31. Kb6 {[%clk 0:00:43.3]} 31...
Kc8 {[%clk 0:01:33.4]} 32. b3 {[%clk 0:00:20.3]} 32... Nd7+ {[%clk 0:01:23.9]}
33. Ka7 {[%clk 0:00:13]} 33... Kc7 {[%clk 0:01:23.3]} 34. Nxc6 {[%clk
0:00:08.1]} 34... Kxc6 {[%clk 0:01:20.1]} 35. a4 {[%clk 0:00:06.3]} 35... Nc5
{[%clk 0:01:18.3]} 36. Bc2 {[%clk 0:00:05.2]} 36... d4 {[%clk 0:01:13.9]} 37. h4
{[%clk 0:00:03.6]} 37... d3 {[%clk 0:01:13.3]} 38. Kb8 {[%clk 0:00:03.5]} 38...
dxc2 {[%clk 0:01:12.4]} 39. Kc8 {[%clk 0:00:02.7]} 39... c1=Q {[%clk 0:01:10.9]}
40. Kd8 {[%clk 0:00:03]} 40... Qd2+ {[%clk 0:01:10.7]} 41. Ke8 {[%clk
0:00:03.2]} 41... Qd7+ {[%clk 0:01:10.3]} 42. Kf8 {[%clk 0:00:03.2]} 42... f5
{[%clk 0:01:08]} 43. Kg8 {[%clk 0:00:02.8]} 43... Nxb3 {[%clk 0:01:01.8]} 44.
Kh7 {[%clk 0:00:02.9]} 44... b5 {[%clk 0:01:00]} 45. Kg6 {[%clk 0:00:02.8]}
45... bxa4 {[%clk 0:00:58.9]} 46. Kh5 {[%clk 0:00:02.5]} 46... Qf7# {[%clk
0:00:57.7]} 0-1

[Event "Betsys MČR v online bleskovém šachu 2021"]
[Site "Chess.com"]
[Date "2021.04.17"]
[Round "1"]
[White "VojtaT"]
[Black "Krvelacny_krecek"]
[Result "0-1"]
[WhiteElo "1729"]
[BlackElo "2379"]
[TimeControl "180+1"]
[EndTime "9:07:43 PDT"]
[Termination "Uživatel Krvelacny_krecek zvítězil na čas"]

1. e4 {[%clk 0:02:58.2]} 1... e5 {[%clk 0:02:59.5]} 2. Nf3 {[%clk 0:02:55.9]}
2... Nc6 {[%clk 0:02:48.7]} 3. Bb5 {[%clk 0:02:50.3]} 3... a6 {[%clk 0:02:48.6]}
4. Ba4 {[%clk 0:02:48]} 4... Nge7 {[%clk 0:02:48.1]} 5. d3 {[%clk 0:02:27.6]}
5... g6 {[%clk 0:02:45.9]} 6. O-O {[%clk 0:02:26.3]} 6... Bg7 {[%clk 0:02:45.8]}
7. c3 {[%clk 0:02:19.2]} 7... O-O {[%clk 0:02:45]} 8. Be3 {[%clk 0:01:57.5]}
8... b5 {[%clk 0:02:37.4]} 9. Bc2 {[%clk 0:01:51.6]} 9... d5 {[%clk 0:02:37.2]}
10. d4 {[%clk 0:01:40.1]} 10... Bg4 {[%clk 0:02:18.8]} 11. h3 {[%clk 0:01:16]}
11... Bxf3 {[%clk 0:02:14.7]} 12. Qxf3 {[%clk 0:01:16.9]} 12... exd4 {[%clk
0:02:14.7]} 13. cxd4 {[%clk 0:01:10.7]} 13... Nxd4 {[%clk 0:02:13.2]} 14. Qd1
{[%clk 0:00:44.9]} 14... Nxc2 {[%clk 0:02:02]} 15. Qxc2 {[%clk 0:00:44.9]} 15...
d4 {[%clk 0:01:56.9]} 16. Bg5 {[%clk 0:00:35.4]} 16... h6 {[%clk 0:01:29.5]} 17.
Bh4 {[%clk 0:00:30.8]} 17... g5 {[%clk 0:01:22.8]} 18. Bg3 {[%clk 0:00:30.7]}
18... d3 {[%clk 0:01:23.1]} 19. Qxc7 {[%clk 0:00:29.4]} 19... Qxc7 {[%clk
0:01:22.9]} 20. Bxc7 {[%clk 0:00:29]} 20... Bxb2 {[%clk 0:01:22.9]} 21. Bd6
{[%clk 0:00:24.6]} 21... Rfe8 {[%clk 0:01:14.4]} 22. Nd2 {[%clk 0:00:20.5]}
22... Bxa1 {[%clk 0:01:14]} 23. Rxa1 {[%clk 0:00:21]} 23... Rad8 {[%clk
0:01:14.2]} 24. e5 {[%clk 0:00:18.5]} 24... Nf5 {[%clk 0:01:12.6]} 25. Bc7
{[%clk 0:00:16.9]} 25... Rd7 {[%clk 0:01:12.1]} 26. Ba5 {[%clk 0:00:13.4]} 26...
Rxe5 {[%clk 0:01:11.4]} 27. Rd1 {[%clk 0:00:13.4]} 27... Re2 {[%clk 0:01:10.8]}
28. Nf3 {[%clk 0:00:13.6]} 28... f6 {[%clk 0:01:05.2]} 29. a3 {[%clk 0:00:12.5]}
29... Ra2 {[%clk 0:01:00]} 30. Bb4 {[%clk 0:00:11.3]} 30... a5 {[%clk
0:01:00.2]} 31. Bxa5 {[%clk 0:00:11]} 31... Rxa3 {[%clk 0:01:00]} 32. Bb4 {[%clk
0:00:11.7]} 32... Rb3 {[%clk 0:01:00.1]} 33. Be1 {[%clk 0:00:10.8]} 33... Nd4
{[%clk 0:00:56.6]} 34. Bd2 {[%clk 0:00:09.7]} 34... Nxf3+ {[%clk 0:00:55.1]} 35.
gxf3 {[%clk 0:00:09.5]} 35... Kf7 {[%clk 0:00:54.5]} 36. Be3 {[%clk 0:00:09.3]}
36... Rb2 {[%clk 0:00:52.1]} 37. Kf1 {[%clk 0:00:09.1]} 37... b4 {[%clk
0:00:52.2]} 38. Ke1 {[%clk 0:00:09.5]} 38... b3 {[%clk 0:00:51.6]} 39. Bc1
{[%clk 0:00:10]} 39... Re2+ {[%clk 0:00:51.3]} 40. Kf1 {[%clk 0:00:09.8]} 40...
b2 {[%clk 0:00:51.2]} 41. Be3 {[%clk 0:00:07]} 41... Rc2 {[%clk 0:00:45.9]} 42.
Ke1 {[%clk 0:00:02.7]} 42... f5 {[%clk 0:00:44.4]} 0-1

[Event "Betsys MČR v online bleskovém šachu 2021"]
[Site "Chess.com"]
[Date "2021.04.17"]
[Round "1"]
[White "Danyjel"]
[Black "KajaOl"]
[Result "0-1"]
[WhiteElo "1711"]
[BlackElo "2343"]
[TimeControl "180+1"]
[EndTime "9:07:44 PDT"]
[Termination "Uživatel KajaOl zvítězil na čas"]

1. e4 {[%clk 0:03:00.9]} 1... Nf6 {[%clk 0:03:00.2]} 2. e5 {[%clk 0:02:58.5]}
2... Nd5 {[%clk 0:03:00.6]} 3. d4 {[%clk 0:02:57.8]} 3... d6 {[%clk 0:03:00.9]}
4. exd6 {[%clk 0:02:56.4]} 4... cxd6 {[%clk 0:03:00.4]} 5. Nf3 {[%clk
0:02:56.4]} 5... Bg4 {[%clk 0:02:56.6]} 6. Be2 {[%clk 0:02:54.9]} 6... Nc6
{[%clk 0:02:55.6]} 7. c3 {[%clk 0:02:53]} 7... g6 {[%clk 0:02:55.3]} 8. O-O
{[%clk 0:02:52.3]} 8... Bg7 {[%clk 0:02:55.4]} 9. Na3 {[%clk 0:02:42.2]} 9...
O-O {[%clk 0:02:54.2]} 10. Nc4 {[%clk 0:02:42]} 10... Re8 {[%clk 0:02:43.7]} 11.
Ne3 {[%clk 0:02:41.7]} 11... Nxe3 {[%clk 0:02:39.7]} 12. Bxe3 {[%clk 0:02:40.9]}
12... e5 {[%clk 0:02:34]} 13. dxe5 {[%clk 0:02:34.9]} 13... dxe5 {[%clk
0:02:33.4]} 14. h3 {[%clk 0:02:19.4]} 14... Be6 {[%clk 0:02:25.3]} 15. Bb5
{[%clk 0:02:13.1]} 15... Qc7 {[%clk 0:02:20.9]} 16. Qe2 {[%clk 0:01:56.8]} 16...
a6 {[%clk 0:02:15.7]} 17. Bxc6 {[%clk 0:01:37.5]} 17... Qxc6 {[%clk 0:02:12]}
18. a3 {[%clk 0:01:29.1]} 18... Bc4 {[%clk 0:02:11.2]} 19. Qc2 {[%clk
0:01:16.3]} 19... Bxf1 {[%clk 0:02:09.9]} 20. Rxf1 {[%clk 0:01:12.5]} 20... Rad8
{[%clk 0:02:10.4]} 21. Rd1 {[%clk 0:00:56.8]} 21... Qc7 {[%clk 0:02:07.6]} 22.
Qb3 {[%clk 0:00:40.4]} 22... Rxd1+ {[%clk 0:02:05.7]} 23. Qxd1 {[%clk
0:00:40.4]} 23... Rd8 {[%clk 0:02:06.1]} 24. Qb3 {[%clk 0:00:40.5]} 24... h6
{[%clk 0:02:03.6]} 25. Bb6 {[%clk 0:00:39.3]} 25... Rd1+ {[%clk 0:01:40.9]} 26.
Qxd1 {[%clk 0:00:26]} 26... Qxb6 {[%clk 0:01:41.1]} 27. Qe2 {[%clk 0:00:25.1]}
27... Qd6 {[%clk 0:01:39.1]} 28. Qd2 {[%clk 0:00:21.8]} 28... Bf8 {[%clk
0:01:21.7]} 29. Qxd6 {[%clk 0:00:19.9]} 29... Bxd6 {[%clk 0:01:22.6]} 30. Nd2
{[%clk 0:00:19.3]} 30... Kf8 {[%clk 0:01:19.3]} 31. Ne4 {[%clk 0:00:18]} 31...
Be7 {[%clk 0:01:17.2]} 32. f3 {[%clk 0:00:18.1]} 32... f5 {[%clk 0:01:16.8]} 33.
Nd2 {[%clk 0:00:14.9]} 33... Bd6 {[%clk 0:01:15.5]} 34. Kf1 {[%clk 0:00:14]}
34... Ke7 {[%clk 0:01:15.3]} 35. Ke2 {[%clk 0:00:14.2]} 35... Ke6 {[%clk
0:01:15]} 36. Nc4 {[%clk 0:00:14.4]} 36... Bc7 {[%clk 0:01:14.8]} 37. Ne3 {[%clk
0:00:11.9]} 37... Bb6 {[%clk 0:01:12.5]} 38. Nc2 {[%clk 0:00:09.8]} 38... Kd5
{[%clk 0:01:10.2]} 39. b3 {[%clk 0:00:10]} 39... e4 {[%clk 0:01:05.5]} 40. c4+
{[%clk 0:00:09.3]} 40... Ke5 {[%clk 0:01:04.2]} 41. Nb4 {[%clk 0:00:04.6]} 41...
Bc5 {[%clk 0:01:02.1]} 42. Nc2 {[%clk 0:00:01.8]} 42... a5 {[%clk 0:01:00.9]}
43. b4 {[%clk 0:00:01.2]} 43... axb4 {[%clk 0:01:00.5]} 44. axb4 {[%clk
0:00:01.4]} 44... Bg1 {[%clk 0:00:57.1]} 45. b5 {[%clk 0:00:01]} 45... b6 {[%clk
0:00:54.8]} 0-1

[Event "Betsys MČR v online bleskovém šachu 2021"]
[Site "Chess.com"]
[Date "2021.04.17"]
[Round "1"]
[White "svobodan"]
[Black "Vesselovsky52"]
[Result "0-1"]
[WhiteElo "1669"]
[BlackElo "2322"]
[TimeControl "180+1"]
[EndTime "9:07:45 PDT"]
[Termination "Uživatel Vesselovsky52 zvítězil matem"]

1. e4 {[%clk 0:03:00.3]} 1... c5 {[%clk 0:02:57.2]} 2. Nf3 {[%clk 0:03:00.1]}
2... g6 {[%clk 0:02:56]} 3. d4 {[%clk 0:02:59.3]} 3... Bg7 {[%clk 0:02:55]} 4.
Nc3 {[%clk 0:02:58.1]} 4... cxd4 {[%clk 0:02:53.3]} 5. Nxd4 {[%clk 0:02:57.4]}
5... Nc6 {[%clk 0:02:53.1]} 6. Be3 {[%clk 0:02:56.3]} 6... Nf6 {[%clk
0:02:52.8]} 7. Bc4 {[%clk 0:02:52.1]} 7... O-O {[%clk 0:02:51.9]} 8. Bb3 {[%clk
0:02:48.8]} 8... d6 {[%clk 0:02:48.7]} 9. f3 {[%clk 0:02:48.5]} 9... Qa5 {[%clk
0:02:47.2]} 10. Qd2 {[%clk 0:02:45.7]} 10... Nxd4 {[%clk 0:02:46.3]} 11. Bxd4
{[%clk 0:02:43.8]} 11... Be6 {[%clk 0:02:45.1]} 12. O-O {[%clk 0:02:28.8]} 12...
Rfc8 {[%clk 0:02:42.3]} 13. Be3 {[%clk 0:02:14.1]} 13... Nd7 {[%clk 0:02:34.7]}
14. Bd4 {[%clk 0:01:51.9]} 14... Bxd4+ {[%clk 0:02:31.3]} 15. Qxd4 {[%clk
0:01:51.3]} 15... Qc5 {[%clk 0:02:30.5]} 16. Qxc5 {[%clk 0:01:50]} 16... Nxc5
{[%clk 0:02:30]} 17. Rfd1 {[%clk 0:01:38.9]} 17... Kf8 {[%clk 0:02:27.4]} 18.
Kf2 {[%clk 0:01:29.3]} 18... a5 {[%clk 0:02:26.1]} 19. Bxe6 {[%clk 0:01:13.6]}
19... fxe6 {[%clk 0:02:24.8]} 20. a4 {[%clk 0:01:14.1]} 20... Nd7 {[%clk
0:02:17]} 21. h3 {[%clk 0:01:05.2]} 21... Ne5 {[%clk 0:02:15.4]} 22. Kg3 {[%clk
0:00:32.9]} 22... Rc5 {[%clk 0:02:10.5]} 23. f4 {[%clk 0:00:26.8]} 23... Nc4
{[%clk 0:02:08.7]} 24. b3 {[%clk 0:00:24.2]} 24... Nb2 {[%clk 0:02:01.4]} 25.
Rdb1 {[%clk 0:00:21]} 25... Rxc3+ {[%clk 0:02:00.8]} 26. Kg4 {[%clk 0:00:18.4]}
26... Rxc2 {[%clk 0:01:53.4]} 27. Ra2 {[%clk 0:00:18.5]} 27... Rxg2+ {[%clk
0:01:51.3]} 28. Kf3 {[%clk 0:00:18.3]} 28... Rh2 {[%clk 0:01:50]} 29. Kg3 {[%clk
0:00:16.2]} 29... Rc2 {[%clk 0:01:47.1]} 30. Raxb2 {[%clk 0:00:16.3]} 30... Rac8
{[%clk 0:01:44.6]} 31. Rxc2 {[%clk 0:00:14.7]} 31... Rxc2 {[%clk 0:01:43.2]} 32.
Rf1 {[%clk 0:00:15.4]} 32... Rc3+ {[%clk 0:01:41.5]} 33. Rf3 {[%clk 0:00:15.9]}
33... Rxf3+ {[%clk 0:01:40.2]} 34. Kxf3 {[%clk 0:00:16.6]} 34... d5 {[%clk
0:01:37.4]} 35. exd5 {[%clk 0:00:15.3]} 35... exd5 {[%clk 0:01:36.1]} 36. Ke3
{[%clk 0:00:16.2]} 36... Kf7 {[%clk 0:01:34.4]} 37. Kd4 {[%clk 0:00:16.4]} 37...
e6 {[%clk 0:01:33.6]} 38. Kc5 {[%clk 0:00:15.4]} 38... Kf6 {[%clk 0:01:31.6]}
39. Kd4 {[%clk 0:00:05]} 39... Kf5 {[%clk 0:01:29.9]} 40. Ke3 {[%clk 0:00:05.2]}
40... e5 {[%clk 0:01:28.1]} 41. fxe5 {[%clk 0:00:04.6]} 41... Kxe5 {[%clk
0:01:27.7]} 42. Kd3 {[%clk 0:00:04.3]} 42... g5 {[%clk 0:01:26.9]} 43. Ke3
{[%clk 0:00:04]} 43... h5 {[%clk 0:01:26.5]} 44. Kd3 {[%clk 0:00:03.6]} 44... g4
{[%clk 0:01:25.7]} 45. hxg4 {[%clk 0:00:04.2]} 45... hxg4 {[%clk 0:01:25.3]} 46.
Ke3 {[%clk 0:00:04.7]} 46... d4+ {[%clk 0:01:24.5]} 47. Ke2 {[%clk 0:00:04.1]}
47... Ke4 {[%clk 0:01:24.1]} 48. Kf2 {[%clk 0:00:04.1]} 48... d3 {[%clk
0:01:23]} 49. Kf1 {[%clk 0:00:03.9]} 49... Kf3 {[%clk 0:01:20.9]} 50. Ke1 {[%clk
0:00:02.9]} 50... Ke3 {[%clk 0:01:20.2]} 51. b4 {[%clk 0:00:01.8]} 51... axb4
{[%clk 0:01:18.7]} 52. a5 {[%clk 0:00:02.4]} 52... b3 {[%clk 0:01:17.2]} 53. a6
{[%clk 0:00:03]} 53... bxa6 {[%clk 0:01:16.3]} 54. Kd1 {[%clk 0:00:02.7]} 54...
b2 {[%clk 0:01:15]} 55. Ke1 {[%clk 0:00:03.1]} 55... b1=R# {[%clk 0:01:13.1]}
0-1

[Event "Betsys MČR v online bleskovém šachu 2021"]
[Site "Chess.com"]
[Date "2021.04.17"]
[Round "1"]
[White "ReceptiveYoyo"]
[Black "Dasty78"]
[Result "1/2-1/2"]
[WhiteElo "1314"]
[BlackElo "2017"]
[TimeControl "180+1"]
[EndTime "9:07:46 PDT"]
[Termination "Remíza dohodou"]

1. d4 {[%clk 0:02:59.1]} 1... Nf6 {[%clk 0:02:59.1]} 2. c4 {[%clk 0:02:59.2]}
2... c5 {[%clk 0:02:58.8]} 3. e3 {[%clk 0:02:58.9]} 3... cxd4 {[%clk 0:02:43]}
4. exd4 {[%clk 0:02:59.8]} 4... g6 {[%clk 0:02:43.1]} 5. Nf3 {[%clk 0:02:56.1]}
5... Bg7 {[%clk 0:02:43.3]} 6. Bd3 {[%clk 0:02:55.5]} 6... O-O {[%clk 0:02:43]}
7. O-O {[%clk 0:02:53.5]} 7... d5 {[%clk 0:02:43]} 8. cxd5 {[%clk 0:02:51.8]}
8... Nxd5 {[%clk 0:02:42.3]} 9. Nc3 {[%clk 0:02:50.5]} 9... Nc6 {[%clk
0:02:35.3]} 10. Be4 {[%clk 0:02:46.9]} 10... Nf6 {[%clk 0:02:09.1]} 11. Bxc6
{[%clk 0:02:36.5]} 11... bxc6 {[%clk 0:02:08.5]} 12. Be3 {[%clk 0:02:32.6]}
12... Bg4 {[%clk 0:02:00.8]} 13. h3 {[%clk 0:02:26.4]} 13... Be6 {[%clk
0:01:53.5]} 14. Re1 {[%clk 0:02:20.2]} 14... Rb8 {[%clk 0:01:52.5]} 15. b3
{[%clk 0:02:18]} 15... Nd5 {[%clk 0:01:30.4]} 16. Nxd5 {[%clk 0:02:14.1]} 16...
Bxd5 {[%clk 0:01:29.1]} 17. Bf4 {[%clk 0:02:11.1]} 17... Rb4 {[%clk 0:01:07.1]}
18. Bd2 {[%clk 0:02:07.6]} 18... Bxf3 {[%clk 0:01:01.3]} 19. Qxf3 {[%clk
0:02:06.9]} 19... Rxd4 {[%clk 0:01:01.2]} 20. Be3 {[%clk 0:02:03.9]} 20... Rd3
{[%clk 0:00:37]} 21. Rad1 {[%clk 0:02:03.2]} 21... Rxd1 {[%clk 0:00:24.4]} 22.
Rxd1 {[%clk 0:02:04.1]} 22... Qa5 {[%clk 0:00:24.2]} 23. a4 {[%clk 0:01:52.9]}
23... c5 {[%clk 0:00:19.1]} 24. Qb7 {[%clk 0:01:38.7]} 24... c4 {[%clk
0:00:17.5]} 25. bxc4 {[%clk 0:01:35.8]} 25... Qxa4 {[%clk 0:00:17.6]} 26. Rd7
{[%clk 0:01:23.5]} 26... Qxc4 {[%clk 0:00:14]} 27. Qxa7 {[%clk 0:01:11.8]} 27...
Qe2 {[%clk 0:00:10]} 28. Rxe7 {[%clk 0:01:09.2]} 28... Qe1+ {[%clk 0:00:08.6]}
29. Kh2 {[%clk 0:01:07.2]} 29... Bf6 {[%clk 0:00:08.4]} 30. Rd7 {[%clk 0:01:00]}
30... Be5+ {[%clk 0:00:08]} 31. g3 {[%clk 0:00:57.9]} 31... h5 {[%clk
0:00:06.2]} 32. Qc5 {[%clk 0:00:51.5]} 32... Bg7 {[%clk 0:00:03.4]} 33. Qd5
{[%clk 0:00:38.6]} 33... Qe2 {[%clk 0:00:03.3]} 34. Rd8 {[%clk 0:00:31.6]} 34...
Qe1 {[%clk 0:00:02.3]} 35. Kg2 {[%clk 0:00:31.1]} 35... Qe2 {[%clk 0:00:01.7]}
1/2-1/2

[Event "Betsys MČR v online bleskovém šachu 2021"]
[Site "Chess.com"]
[Date "2021.04.17"]
[Round "1"]
[White "CZpeeeter"]
[Black "HCMotorCB"]
[Result "0-1"]
[WhiteElo "1725"]
[BlackElo "2367"]
[TimeControl "180+1"]
[EndTime "9:07:52 PDT"]
[Termination "Uživatel HCMotorCB zvítězil po vzdání soupeře"]

1. d4 {[%clk 0:02:59.5]} 1... d5 {[%clk 0:02:58.7]} 2. Nf3 {[%clk 0:02:58.5]}
2... Nf6 {[%clk 0:02:57.8]} 3. e3 {[%clk 0:02:57.8]} 3... c6 {[%clk 0:02:58]} 4.
Bd3 {[%clk 0:02:56.5]} 4... Bg4 {[%clk 0:02:57.2]} 5. Nbd2 {[%clk 0:02:55.6]}
5... e6 {[%clk 0:02:56.7]} 6. O-O {[%clk 0:02:55.4]} 6... Nbd7 {[%clk
0:02:56.1]} 7. h3 {[%clk 0:02:54.4]} 7... Bh5 {[%clk 0:02:55.6]} 8. b3 {[%clk
0:02:53.5]} 8... Bd6 {[%clk 0:02:54.1]} 9. Bb2 {[%clk 0:02:52.1]} 9... O-O
{[%clk 0:02:53.6]} 10. Qe1 {[%clk 0:02:52.1]} 10... Qe7 {[%clk 0:02:51.1]} 11.
Ne5 {[%clk 0:02:48.2]} 11... c5 {[%clk 0:02:48]} 12. f4 {[%clk 0:02:43.2]} 12...
Rac8 {[%clk 0:02:34.7]} 13. Rc1 {[%clk 0:02:36.9]} 13... a6 {[%clk 0:02:30]} 14.
a4 {[%clk 0:02:29.5]} 14... Bg6 {[%clk 0:02:18.9]} 15. Nxg6 {[%clk 0:02:19.5]}
15... hxg6 {[%clk 0:02:19.8]} 16. Nf3 {[%clk 0:02:19.7]} 16... c4 {[%clk
0:02:12.6]} 17. bxc4 {[%clk 0:02:00.9]} 17... dxc4 {[%clk 0:02:13.5]} 18. Be2
{[%clk 0:02:01.2]} 18... Ne4 {[%clk 0:02:04.2]} 19. Bc3 {[%clk 0:01:53.2]} 19...
b5 {[%clk 0:01:56.5]} 20. axb5 {[%clk 0:01:50.3]} 20... axb5 {[%clk 0:01:56.8]}
21. Ba1 {[%clk 0:01:25.3]} 21... b4 {[%clk 0:01:51.7]} 22. c3 {[%clk 0:01:20.1]}
22... b3 {[%clk 0:01:50.7]} 23. Bb2 {[%clk 0:01:19.8]} 23... Nb6 {[%clk
0:01:46.6]} 24. Ne5 {[%clk 0:01:13.2]} 24... Bxe5 {[%clk 0:01:35.7]} 25. fxe5
{[%clk 0:01:12.6]} 25... Na4 {[%clk 0:01:34.6]} 26. Rb1 {[%clk 0:01:11.3]} 26...
Nxb2 {[%clk 0:01:16.9]} 27. Rxb2 {[%clk 0:01:11]} 27... Qa3 {[%clk 0:01:17]} 28.
Qc1 {[%clk 0:01:09.7]} 28... Rc7 {[%clk 0:01:04.7]} 29. Bf3 {[%clk 0:01:08]}
29... Ng5 {[%clk 0:01:03.4]} 30. Qa1 {[%clk 0:01:01.1]} 30... Ra7 {[%clk
0:00:55.3]} 31. Qxa3 {[%clk 0:00:52.8]} 31... Rxa3 {[%clk 0:00:56.2]} 32. Be2
{[%clk 0:00:45.7]} 32... Rc8 {[%clk 0:00:54.6]} 33. Rfb1 {[%clk 0:00:37]} 33...
Rc7 {[%clk 0:00:52.7]} 34. Bf3 {[%clk 0:00:31.4]} 34... Rca7 {[%clk 0:00:47.5]}
35. Be2 {[%clk 0:00:29.1]} 35... R7a4 {[%clk 0:00:45.6]} 36. h4 {[%clk
0:00:26.1]} 36... Ne4 {[%clk 0:00:43.6]} 37. Rc1 {[%clk 0:00:25.6]} 37... Ra1
{[%clk 0:00:39.1]} 38. Rxa1 {[%clk 0:00:20.5]} 38... Rxa1+ {[%clk 0:00:38.6]}
39. Kh2 {[%clk 0:00:20.5]} 39... Ra4 {[%clk 0:00:38]} 40. Bf3 {[%clk 0:00:20]}
40... Nxc3 {[%clk 0:00:37]} 41. Bc6 {[%clk 0:00:19.7]} 41... Rb4 {[%clk
0:00:35.7]} 42. Kg3 {[%clk 0:00:18.7]} 42... Nd1 {[%clk 0:00:32.5]} 43. Rb1
{[%clk 0:00:18.1]} 43... Nxe3 {[%clk 0:00:32.1]} 44. Kf3 {[%clk 0:00:17.6]}
44... Nc2 {[%clk 0:00:30]} 45. Ke2 {[%clk 0:00:16.6]} 45... Nxd4+ {[%clk
0:00:29.7]} 0-1